bitfinex/quotes_SOLUSD_20260306
["timestamp","ask_amount","ask_price","bid_price","bid_amount"]
[1772801321664,0.49791808,86.179,86.139,11.60914336]
[1772801322951,0.49791808,86.179,86.139,41.17935524]
[1772801323151,0.49791808,86.179,86.14,0.54735348]
[1772801324371,0.49487478,86.177,86.141,11.60887382]
[1772801326663,0.49290373,86.175,86.141,11.60887382]
[1772801327277,0.49290373,86.175,86.141,12.1562273]
[1772801328170,11.60442824,86.174,86.141,12.1562273]
[1772801328378,0.49193515,86.173,86.141,12.1562273]
[1772801329560,0.49193515,86.173,86.142,0.54735348]
[1772801330875,11.60469758,86.172,86.144,0.54735348]
[1772801331862,8.61307676,86.16,86.113,11.61264743]
[1772801332065,0.42648471,86.159,86.114,0.54735348]
[1772801333962,0.42648471,86.157,86.114,0.54735348]
[1772801334478,0.28432314,86.149,86.099,0.54735348]
[1772801336786,0.42648471,86.147,86.101,0.53979431]
[1772801337786,0.28432314,86.139,86.081,0.53979431]
[1772801338078,0.28432314,86.139,86.085,0.53979431]
[1772801338675,0.42648471,86.137,86.086,12.15608499]
[1772801339383,0.42648471,86.137,86.087,0.53979431]
[1772801340292,40.63247346,86.138,86.087,0.53979431]
[1772801340793,40.62822848,86.147,86.088,40.65607284]
[1772801341090,0.42648471,86.146,86.089,0.53979431]
[1772801341687,0.28432314,86.139,86.089,0.53979431]
[1772801342580,40.62822848,86.147,86.092,0.53979431]
[1772801342774,11.60806528,86.147,86.094,0.53979431]
[1772801342974,40.6178556,86.169,86.1,0.14216157]
[1772801343178,40.6178556,86.169,86.109,0.53979431]
[1772801344079,29.012754,86.169,86.114,0.53979431]
[1772801346173,29.012754,86.169,86.116,0.53979431]
[1772801347672,11.60402427,86.177,86.119,0.53979431]
[1772801348173,11.60402427,86.177,86.124,0.53979431]
[1772801348493,11.60362032,86.18,86.126,0.53979431]
[1772801348791,11.60296221,86.185,86.132,0.53979431]
[1772801348981,11.60362032,86.18,86.136,0.53979431]
[1772801350300,0.42648471,86.177,86.128,0.53979431]
[1772801350499,0.28432314,86.169,86.128,0.53979431]
[1772801351072,0.42648471,86.159,86.1,0.53979431]
[1772801351275,0.14216157,86.177,86.1,0.53979431]
[1772801351276,0.42648471,86.149,86.1,12.15419616]
[1772801351482,0.28432314,86.149,86.101,0.53979431]
[1772801351886,0.42648471,86.149,86.101,0.53979431]
[1772801352288,0.28432314,86.147,86.103,0.53979431]
[1772801353879,40.62775687,86.148,86.103,0.53979431]
[1772801354498,0.42648471,86.156,86.105,0.53979431]
[1772801356597,0.42648471,86.154,86.107,0.53979431]
[1772801357397,0.28432314,86.149,86.107,0.53979431]
[1772801358700,40.62775687,86.148,86.109,0.53979431]
[1772801359892,40.62775687,86.148,86.111,0.53979431]
[1772801361602,40.62775687,86.148,86.112,11.61278335]
[1772801361806,40.62775687,86.148,86.113,0.53979431]
[1772801364992,40.62256989,86.159,86.115,0.53979431]
[1772801367708,29.01612135,86.159,86.117,0.53979431]
[1772801368813,29.01612135,86.159,86.119,0.53979431]
[1772801370698,11.60537096,86.167,86.119,0.53979431]
[1772801370901,0.42648471,86.171,86.121,0.53979431]
[1772801371508,0.28432314,86.169,86.121,0.53979431]
[1772801372896,40.61832698,86.168,86.122,11.61143494]
[1772801373107,40.61832698,86.168,86.123,0.53979431]
[1772801374907,8.62392734,86.19,86.123,0.53979431]
[1772801375118,40.60937263,86.187,86.125,0.53979431]
[1772801375317,0.14216157,86.186,86.125,0.53979431]
[1772801375703,0.42648471,86.186,86.125,0.53979431]
[1772801377227,0.42648471,86.184,86.127,0.53979431]
[1772801378607,0.42648471,86.182,86.129,0.53979431]
[1772801380208,0.28432314,86.179,86.129,0.53979431]
[1772801380730,0.28432314,86.179,86.131,0.53979431]
[1772801380731,40.61361367,86.178,86.131,0.53979431]
[1772801382628,40.61361367,86.178,86.132,11.61008684]
[1772801382821,40.61361367,86.178,86.133,0.53979431]
[1772801384323,0.14216157,86.187,86.136,0.53979431]
[1772801384324,11.60267789,86.187,86.136,0.53979431]
[1772801384620,11.60267789,86.187,86.138,0.53979431]
[1772801384806,11.60267789,86.187,86.14,0.53979431]
[1772801387229,11.60267789,86.187,86.142,0.53979431]
[1772801387728,7.10278819,86.188,86.145,0.53979431]
[1772801387923,7.10278819,86.188,86.148,0.14216157]
[1772801387924,18.70542424,86.188,86.148,0.14216157]
[1772801388127,18.70542424,86.188,86.149,0.53979431]
[1772801389329,18.70542424,86.188,86.15,40.62681369]
[1772801389538,7.10278819,86.188,86.154,0.53979431]
[1772801389716,7.10278819,86.188,86.156,0.53979431]
[1772801390036,7.10278819,86.188,86.158,0.53979431]
[1772801391029,0.2,86.21,86.186,0.50475242]
[1772801391631,11.60010799,86.207,86.186,0.50475242]
[1772801391934,11.60010799,86.207,86.186,12.10751732]
[1772801392236,11.60010799,86.207,86.187,0.50475242]
[1772801392631,11.10010799,86.207,86.187,0.50475242]
[1772801393128,0.2,86.21,86.189,0.50475242]
[1772801393831,11.59716101,86.228,86.189,0.50475242]
[1772801394223,11.59595069,86.237,86.189,0.50475242]
[1772801394638,0.38309721,86.236,86.189,0.50475242]
[1772801395514,0.38309721,86.236,86.182,3.69383402]
[1772801395515,11.59621963,86.235,86.191,0.50475242]
[1772801396123,11.5956983,86.239,86.193,3.69383402]
[1772801396327,7.15422063,86.252,86.196,0.49236316]
[1772801396719,7.15422063,86.252,86.194,0.28432314]
[1772801396720,7.15422063,86.252,86.201,0.14216157]
[1772801396924,7.15422063,86.252,86.208,0.49236316]
[1772801397517,7.15422063,86.252,86.21,0.49236316]
[1772801397717,7.15422063,86.252,86.213,0.49236316]
[1772801398539,11.59406847,86.251,86.213,0.49236316]
[1772801398737,7.15422063,86.252,86.213,0.49236316]
[1772801399135,18.74821634,86.252,86.213,0.49236316]
[1772801399545,7.15422063,86.252,86.218,0.49236316]
[1772801401345,0.71298673,86.258,86.218,0.49236316]
[1772801401644,11.59326199,86.257,86.22,0.51935128]
[1772801401946,0.39277454,86.256,86.22,0.51935128]
[1772801402147,0.71298673,86.258,86.22,0.51935128]
[1772801402634,0.71298673,86.258,86.222,0.51935128]
[1772801402835,1e-08,86.258,86.225,0.51935128]
[1772801403045,1e-08,86.258,86.229,0.51935128]
[1772801403747,1e-08,86.258,86.231,0.51935128]
[1772801403950,11.98495324,86.279,86.231,0.51935128]
[1772801404543,11.98495324,86.279,86.234,0.51935128]
[1772801404983,28.9735064,86.286,86.234,0.51935128]
[1772801404984,0.39818929,86.286,86.236,0.51935128]
[1772801405143,0.39818929,86.278,86.238,0.51935128]
[1772801405830,0.39995291,86.276,86.24,0.51935128]
[1772801406032,0.39995291,86.276,86.239,11.59568176]
[1772801406341,0.39995291,86.276,86.234,0.51935128]
[1772801406540,0.40169626,86.268,86.22,0.51935128]
[1772801407740,0.4034196,86.266,86.222,0.51935128]
[1772801410235,0.40680711,86.264,86.224,0.51935128]
[1772801412749,12.00419948,86.263,86.226,0.51935128]
[1772801412938,11.59245562,86.263,86.226,0.51935128]
[1772801413249,0.41174386,86.262,86.226,0.51935128]
[1772801413556,0.41335179,86.277,86.228,0.51935128]
[1772801414854,0.41335179,86.277,86.227,0.14216157]
[1772801414855,0.41335179,86.277,86.23,0.51935128]
[1772801415050,0.41335179,86.277,86.233,0.51935128]
[1772801415855,0.2,86.28,86.235,0.51935128]
[1772801416038,0.2,86.28,86.234,0.14216157]
[1772801416236,0.2,86.28,86.239,0.51935128]
[1772801416644,0.4180656,86.278,86.239,0.51935128]
[1772801416960,0.4180656,86.278,86.233,0.51935128]
[1772801417152,0.4180656,86.276,86.235,0.51935128]
[1772801417461,0.2,86.28,86.237,0.51935128]
[1772801418336,1e-08,86.28,86.241,0.51935128]
[1772801418556,0.4211186,86.308,86.253,0.51935128]
[1772801418736,0.4211186,86.308,86.259,0.51935128]
[1772801419157,0.4211186,86.308,86.264,0.51935128]
[1772801419655,12.00753936,86.308,86.264,0.51935128]
[1772801420238,11.58573236,86.314,86.264,0.51935128]
[1772801420562,11.58539797,86.316,86.268,0.51935128]
[1772801420758,0.42410186,86.322,86.277,0.14216157]
[1772801420953,28.95619208,86.338,86.278,0.51935128]
[1772801420954,0.42410186,86.336,86.278,0.51935128]
[1772801421159,0.42410186,86.334,86.28,0.51935128]
[1772801421358,0.2,86.35,86.284,0.51935128]
[1772801421538,11.58091002,86.349,86.288,0.51935128]
[1772801421740,0.2,86.35,86.295,0.51935128]
[1772801421944,0.2,86.35,86.316,0.14216157]
[1772801422145,0.2,86.35,86.319,0.51935128]
[1772801422758,0.2,86.36,86.323,0.51935128]
[1772801422959,0.2,86.38,86.332,0.14216157]
[1772801422960,0.42701699,86.379,86.332,0.14216157]
[1772801423265,0.42701699,86.379,86.339,0.51935128]
[1772801423861,0.2,86.38,86.342,0.51935128]
[1772801424062,0.2,86.38,86.348,0.51935128]
[1772801424846,0.42986554,86.378,86.332,11.58319047]
[1772801425262,0.42986554,86.376,86.327,28.95950375]
[1772801425461,0.42986554,86.376,86.324,0.51935128]
[1772801425662,11.57715595,86.377,86.326,0.51935128]
[1772801425966,0.43126532,86.376,86.328,0.51935128]
[1772801427857,0.2,86.38,86.331,0.51935128]
[1772801427858,0.43401683,86.375,86.331,0.51935128]
[1772801428057,0.43401683,86.375,86.339,0.51935128]
[1772801428868,12.01225683,86.379,86.339,0.51935128]
[1772801429070,0.43536893,86.378,86.339,0.51935128]
[1772801429277,0.43536893,86.378,86.329,11.58359299]
[1772801429572,0.43536893,86.378,86.33,0.51935128]
[1772801429950,40.51910765,86.379,86.329,40.54257548]
[1772801429951,0.4367055,86.376,86.332,0.51935128]
[1772801431473,0.4367055,86.376,86.331,11.58332464]
[1772801431474,0.43933276,86.358,86.301,0.51935128]
[1772801431650,0.4406238,86.348,86.302,0.51889915]
[1772801432077,0.4406238,86.346,86.304,0.51889915]
[1772801432659,0.4406238,86.346,86.303,11.58708272]
[1772801432855,0.44190002,86.339,86.289,0.51889915]
[1772801433160,0.44190002,86.338,86.289,0.51889915]
[1772801433574,12.02433983,86.347,86.289,0.51889915]
[1772801433778,12.02433983,86.347,86.29,0.14216157]
[1772801433967,0.44316157,86.344,86.301,0.51889915]
[1772801435557,0.44564137,86.358,86.301,0.51889915]
[1772801435876,0.44564137,86.358,86.306,0.51889915]
[1772801436174,12.02434176,86.366,86.315,0.14216157]
[1772801436357,0.44564137,86.366,86.318,0.51889915]
[1772801436758,0.44685995,86.364,86.318,0.51889915]
[1772801438073,0.44806454,86.372,86.32,0.51889915]
[1772801438261,0.44806454,86.372,86.323,0.51889915]
[1772801438458,0.44806454,86.372,86.327,0.51889915]
[1772801438662,11.57718085,86.377,86.329,0.51889915]
[1772801438878,0.44925529,86.381,86.331,0.51889915]
[1772801439188,11.57570463,86.388,86.339,0.51889915]
[1772801439362,11.57619609,86.385,86.339,0.51889915]
[1772801439679,0.45043236,86.378,86.339,0.51889915]
[1772801440071,0.45043236,86.387,86.339,0.51889915]
[1772801440374,0.45043236,86.387,86.341,0.51889915]
[1772801440760,11.57634096,86.384,86.341,0.51889915]
[1772801442875,11.57634096,86.384,86.343,0.51889915]
[1772801443277,0.45043236,86.387,86.343,0.51889915]
[1772801443483,11.84393961,86.389,86.343,0.51889915]
[1772801444283,0.456118,86.378,86.343,0.51889915]
[1772801444879,11.57639388,86.383,86.345,0.51889915]
[1772801445067,0.456118,86.386,86.345,0.51889915]
[1772801445265,11.84397223,86.389,86.348,0.51889915]
[1772801445483,0.45721624,86.379,86.347,3.69383402]
[1772801445682,0.45721624,86.378,86.347,3.69383402]
[1772801447392,0.45721624,86.378,86.349,0.51889915]
[1772801449176,0.45721624,86.378,86.35,11.58077591]
[1772801449678,11.57715595,86.377,86.35,12.09967506]
[1772801449877,0.46148452,86.376,86.35,12.09967506]
[1772801450594,0.46148452,86.376,86.35,11.58077591]
[1772801450898,11.57658719,86.382,86.351,0.51889915]
[1772801451086,0.46252113,86.384,86.353,0.51889915]
[1772801451283,1e-08,86.38,86.354,0.51889915]
[1772801452878,1e-08,86.38,86.356,0.51889915]
[1772801453403,0.46455877,86.38,86.355,11.58010537]
[1772801454476,0.46455877,86.38,86.351,11.58058068]
[1772801454698,0.46455877,86.38,86.341,11.58198306]
[1772801454896,11.5768879,86.379,86.341,0.51889915]
[1772801455097,1e-08,86.38,86.341,0.51889915]
[1772801456202,0.2,86.4,86.346,0.14216157]
[1772801456401,0.2,86.4,86.359,0.52093876]
[1772801456706,0.46945155,86.414,86.369,0.52093876]
[1772801456885,0.46945155,86.414,86.371,0.52093876]
[1772801457087,11.57286856,86.409,86.371,0.52093876]
[1772801457286,0.46945155,86.408,86.361,11.57924119]
[1772801459186,0.47133089,86.406,86.361,11.57924119]
[1772801459592,0.47133089,86.406,86.339,0.14216157]
[1772801459593,0.4722544,86.389,86.342,0.52093876]
[1772801459906,0.4722544,86.388,86.342,0.52093876]
[1772801461783,0.14216157,86.378,86.325,0.51890163]
[1772801462098,0.28432314,86.386,86.324,11.58426393]
[1772801462099,0.47496177,86.377,86.328,0.51890163]
[1772801464398,0.47757693,86.375,86.33,0.51890163]
[1772801466689,11.57755806,86.374,86.332,0.51890163]
[1772801466890,0.47927068,86.373,86.331,11.58332464]
[1772801467692,0.47927068,86.373,86.331,41.06053788]
[1772801467907,0.47927068,86.373,86.332,0.51890163]
[1772801468306,0.47927068,86.373,86.331,11.58332464]
[1772801468626,0.48092575,86.371,86.334,0.51890163]
[1772801469394,11.57782614,86.372,86.334,0.51890163]
[1772801469590,11.5768879,86.379,86.334,0.51890163]
[1772801470100,0.48173906,86.378,86.334,0.51890163]
[1772801470613,11.57715595,86.377,86.336,0.51890163]
[1772801472529,0.48412335,86.376,86.336,0.51890163]
[1772801472707,0.48412335,86.376,86.338,0.51890163]
[1772801473303,11.57742402,86.375,86.338,0.51890163]
[1772801473803,12.06232395,86.375,86.338,0.51890163]
[1772801474614,0.48566759,86.374,86.339,40.53787974]
[1772801475114,0.48566759,86.374,86.34,0.51890163]
[1772801475724,0.48642643,86.372,86.341,12.10088469]
[1772801476619,0.48642643,86.372,86.341,11.58198306]
[1772801476827,0.48717655,86.387,86.342,0.51890163]
[1772801477116,0.48717655,86.385,86.341,11.58198306]
[1772801477618,0.48717655,86.385,86.328,3.69383402]
[1772801477619,38.20092126,86.397,86.338,0.57579448]
[1772801477818,38.20092126,86.397,86.34,0.57579448]
[1772801479712,38.20092126,86.397,86.328,3.69383402]
[1772801479713,0.14216157,86.396,86.342,0.57579448]
[1772801480044,38.20092126,86.397,86.343,0.57579448]
[1772801480321,0.14216157,86.396,86.343,0.57579448]
[1772801482019,0.14216157,86.396,86.345,0.57579448]
[1772801482218,0.14216157,86.389,86.335,0.57579448]
[1772801482417,3.43075505,86.38,86.336,0.57579448]
[1772801483625,0.42648471,86.389,86.336,0.57579448]
[1772801484206,40.51488631,86.388,86.338,0.57579448]
[1772801485515,3.43075505,86.38,86.338,0.57579448]
[1772801485823,0.28432314,86.387,86.338,0.57579448]
[1772801486619,0.42648471,86.387,86.334,11.58282569]
[1772801486817,0.42648471,86.379,86.332,0.57579448]
[1772801487221,3.43075505,86.37,86.322,0.57579448]
[1772801487541,62.2,86.386,86.315,0.57579448]
[1772801487542,0.42648471,86.359,86.315,0.57579448]
[1772801488135,0.42648471,86.349,86.315,0.57579448]
[1772801488318,0.02033879,86.348,86.308,0.57579448]
[1772801488516,0.02033879,86.346,86.308,0.57579448]
[1772801489120,0.02033879,86.346,86.3,0.57579448]
[1772801489323,0.02033879,86.339,86.3,0.57579448]
[1772801490225,0.02033879,86.339,86.3,12.16320232]
[1772801490731,0.02033879,86.339,86.292,0.57579448]
[1772801490732,0.02567128,86.338,86.292,0.57579448]
[1772801491027,3.43075505,86.33,86.292,0.57579448]
[1772801491234,3.43075505,86.33,86.248,46.37737739]
[1772801491235,0.02567128,86.319,86.271,0.57579448]
[1772801492730,191.09165448,86.346,86.274,0.58981363]
[1772801492731,0.03344253,86.327,86.274,0.58981363]
[1772801496034,11.58372718,86.328,86.276,0.58981363]
[1772801496614,0.04339399,86.353,86.279,0.58981363]
[1772801496821,0.04339399,86.353,86.281,0.58981363]
[1772801497227,0.04581083,86.349,86.281,0.58981363]
[1772801497534,0.04581083,86.338,86.281,0.58981363]
[1772801497733,0.04581083,86.329,86.281,0.58981363]
[1772801498127,0.04581083,86.328,86.283,0.58981363]
[1772801498736,0.0481999,86.319,86.283,0.58981363]
[1772801500258,0.05056154,86.318,86.273,0.58981363]
[1772801500420,0.05289605,86.309,86.273,0.58981363]
[1772801502042,0.05289605,86.309,86.245,0.28432314]
[1772801502043,0.05520375,86.299,86.257,0.58981363]
[1772801502745,0.42648471,86.298,86.257,0.58981363]
[1772801503050,0.42648471,86.298,86.25,11.59417202]
[1772801503051,0.05748494,86.289,86.25,11.59417202]
[1772801503245,0.05748494,86.289,86.251,0.58981363]
[1772801504342,0.42648471,86.298,86.251,0.58981363]
[1772801504343,0.06196902,86.298,86.251,0.58981363]
[1772801504543,40.55666924,86.299,86.252,0.58981363]
[1772801504544,11.58761978,86.299,86.252,0.58981363]
[1772801504846,0.06196902,86.306,86.255,0.58981363]
[1772801507237,0.06196902,86.306,86.257,0.58981363]
[1772801508138,3.43075505,86.3,86.257,0.58981363]
[1772801508443,0.06850384,86.305,86.257,0.58981363]
[1772801509547,0.06850384,86.305,86.259,0.58981363]
[1772801510040,11.58525861,86.317,86.261,0.58981363]
[1772801511446,0.07687198,86.316,86.261,0.58981363]
[1772801511646,0.07687198,86.316,86.264,0.58981363]
[1772801512231,0.07687198,86.309,86.264,0.58981363]
[1772801513951,0.07687198,86.309,86.266,0.58981363]
[1772801515549,0.07687198,86.309,86.267,11.59191811]
[1772801515733,0.07687198,86.309,86.268,0.58374579]
[1772801517761,0.09061722,86.308,86.27,0.58374579]
[1772801519747,0.09061722,86.308,86.271,40.56983226]
[1772801519936,0.09061722,86.308,86.272,0.58374579]
[1772801520337,0.09617618,86.315,86.272,0.58374579]
[1772801520549,28.96281885,86.318,86.272,0.58374579]
[1772801520745,11.58493495,86.319,86.272,0.58374579]
[1772801520940,3.43075505,86.33,86.272,0.58374579]
[1772801520941,11.58386136,86.327,86.275,0.58374579]
[1772801521756,11.58312641,86.333,86.277,0.60443216]
[1772801521953,11.5823855,86.338,86.28,0.60443216]
[1772801522457,11.58178925,86.343,86.284,0.14216157]
[1772801522755,11.58178925,86.343,86.291,0.60443216]
[1772801523463,139.1427787,87.356,86.282,0.42648471]
[1772801523464,11.57983718,86.357,86.3,0.14216157]
[1772801523643,11.57983718,86.357,86.301,0.60443216]
[1772801524171,11.57983718,86.357,86.281,3.69383402]
[1772801524172,29.04951945,86.368,86.309,0.14216157]
[1772801524467,29.04951945,86.368,86.31,0.60443216]
[1772801525153,0.10329468,86.368,86.31,0.60443216]
[1772801525358,0.10329468,86.368,86.313,0.60443216]
[1772801525962,0.10329468,86.368,86.315,0.60443216]
[1772801526255,0.10673246,86.378,86.315,0.60443216]
[1772801526655,0.10673246,86.378,86.319,0.60443216]
[1772801526963,0.10842179,86.4,86.331,0.60443216]
[1772801527341,0.10842179,86.4,86.338,0.60443216]
[1772801527645,0.10842179,86.4,86.34,0.60443216]
[1772801527839,11.57286856,86.409,86.348,0.60443216]
[1772801528054,0.2,86.41,86.352,0.60443216]
[1772801528247,0.2,86.41,86.363,0.14216157]
[1772801528457,0.2,86.41,86.34,0.28432314]
[1772801528458,0.2,86.41,86.37,0.60443216]
[1772801529249,0.2,86.41,86.375,0.60443216]
[1772801529960,0.2,86.42,86.377,0.60443216]
[1772801530172,1e-08,86.42,86.381,0.60443216]
[1772801530464,1e-08,86.42,86.385,0.60443216]
[1772801531339,1e-08,86.42,86.387,0.60443216]
[1772801532255,1e-08,86.42,86.39,0.60443216]
[1772801532649,0.45496588,86.431,86.391,0.60443216]
[1772801532842,0.2,86.45,86.4,0.60443216]
[1772801533051,0.56705245,86.448,86.401,0.60443216]
[1772801533468,0.56705245,86.446,86.402,11.57380616]
[1772801533650,0.56705245,86.446,86.404,0.60443216]
[1772801533851,0.2,86.45,86.406,0.60443216]
[1772801534367,0.14216157,86.469,86.407,0.60443216]
[1772801534568,40.47740204,86.468,86.409,0.60443216]
[1772801534753,40.47740204,86.468,86.411,0.60443216]
[1772801535147,0.14216157,86.467,86.411,0.60443216]
[1772801535347,0.28432314,86.467,86.411,0.60443216]
[1772801535666,8.56868704,86.45,86.391,0.60443216]
[1772801535866,0.14216157,86.452,86.391,0.60443216]
[1772801536070,40.47740204,86.468,86.391,0.60443216]
[1772801536245,40.47740204,86.468,86.395,0.60443216]
[1772801536246,12.0334347,86.468,86.395,0.60443216]
[1772801536448,0.46846269,86.467,86.408,0.14216157]
[1772801536663,0.46846269,86.467,86.411,0.60443216]
[1772801537477,0.47124347,86.465,86.413,0.60443216]
[1772801537775,11.56523951,86.466,86.413,0.60443216]
[1772801537776,0.47124347,86.463,86.413,0.60443216]
[1772801538567,0.47494009,86.461,86.415,0.60443216]
[1772801539357,0.47494009,86.461,86.418,0.60443216]
[1772801539871,12.04566755,86.467,86.418,0.60443216]
[1772801540455,20.48938225,86.47,86.42,0.60443216]
[1772801540656,20.48938225,86.47,86.415,0.28432314]
[1772801540657,0.48597394,86.469,86.427,0.60443216]
[1772801540873,0.48597394,86.468,86.427,0.60443216]
[1772801541058,20.48938225,86.47,86.429,0.60443216]
[1772801541245,1e-08,86.47,86.426,0.60443216]
[1772801541450,1e-08,86.47,86.43,0.60443216]
[1772801541873,1e-08,86.47,86.432,0.60443216]
[1772801542174,0.2,86.49,86.442,0.60443216]
[1772801542378,0.2,86.49,86.45,0.60443216]
[1772801542552,0.2,86.49,86.451,40.48536164]
[1772801542756,0.2,86.49,86.453,0.60443216]
[1772801543578,0.50205401,86.488,86.437,0.60443216]
[1772801543759,0.50205401,86.482,86.437,0.60443216]
[1772801544264,0.50205401,86.479,86.437,0.60443216]
[1772801544862,0.50205401,86.479,86.438,40.49145051]
[1772801545058,0.50729137,86.487,86.441,0.60443216]
[1772801545279,0.2,86.49,86.441,0.60443216]
[1772801545778,0.2,86.49,86.443,0.60443216]
[1772801545965,0.51246858,86.489,86.443,0.60443216]
[1772801546977,0.51758632,86.487,86.444,11.56818286]
[1772801547276,0.51758632,86.487,86.444,12.17261502]
[1772801547476,0.51758632,86.487,86.445,0.60443216]
[1772801547858,0.51758632,86.487,86.446,0.60443216]
[1772801548079,11.56229765,86.488,86.446,0.60443216]
[1772801548282,0.2,86.49,86.446,0.60443216]
[1772801548775,0.2,86.49,86.448,0.60443216]
[1772801549080,0.52764614,86.486,86.45,0.60443216]
[1772801550076,11.56243134,86.487,86.42,4.12031873]
[1772801550077,0.56705245,86.484,86.42,4.12031873]
[1772801551055,0.56705245,86.479,86.424,3.69383402]
[1772801551277,0.56705245,86.479,86.421,40.49941564]
[1772801551278,0.56705245,86.469,86.421,11.57126161]
[1772801551958,0.56705245,86.469,86.422,0.63854724]
[1772801552985,40.47740204,86.468,86.423,11.57099383]
[1772801553160,0.64208743,86.467,86.423,12.20954107]
[1772801553559,0.64208743,86.459,86.419,11.57150115]
[1772801555112,0.64208743,86.457,86.42,0.63854724]
[1772801555769,0.64208743,86.455,86.399,40.50972811]
[1772801556087,0.64208743,86.453,86.4,0.63854724]
[1772801556588,0.64208743,86.453,86.401,0.63854724]
[1772801556959,0.64208743,86.478,86.408,0.63854724]
[1772801557172,0.64208743,86.472,86.413,0.63854724]
[1772801558880,0.64208743,86.472,86.416,0.63854724]
[1772801559085,11.56352949,86.479,86.421,40.64157721]
[1772801559275,11.56352949,86.479,86.428,0.63854724]
[1772801559482,0.64208743,86.481,86.428,0.63854724]
[1772801559784,11.56303586,86.483,86.43,0.63854724]
[1772801559974,11.56231115,86.488,86.434,0.63854724]
[1772801560184,11.56216397,86.489,86.44,0.63854724]
[1772801560481,0.64208743,86.488,86.44,0.63854724]
[1772801561478,0.2,86.49,86.442,0.63854724]
[1772801561479,0.64208743,86.486,86.442,0.63854724]
[1772801561685,0.64208743,86.486,86.443,0.63854724]
[1772801563383,0.64208743,86.482,86.443,0.63854724]
[1772801563770,0.64208743,86.482,86.437,11.56901933]
[1772801563962,0.64208743,86.482,86.437,12.20756657]
[1772801564163,0.64208743,86.482,86.438,0.63854724]
[1772801564576,0.64208743,86.482,86.441,0.63854724]
[1772801565170,11.56242516,86.488,86.442,0.63854724]
[1772801565482,11.56242516,86.488,86.441,0.28432314]
[1772801565483,0.2,86.49,86.445,0.63854724]
[1772801565781,0.2,86.49,86.451,0.63854724]
[1772801566586,0.2,86.49,86.454,0.63854724]
[1772801566803,0.64208743,86.488,86.448,11.56760511]
[1772801567266,0.64208743,86.488,86.449,0.63854724]
[1772801567678,0.64208743,86.488,86.442,11.56841131]
[1772801567867,0.64208743,86.488,86.432,3.69383402]
[1772801567868,0.64208743,86.479,86.4,0.63854724]
[1772801568183,0.64208743,86.479,86.42,0.63854724]
[1772801568691,0.64208743,86.477,86.426,0.63854724]
[1772801568872,0.64208743,86.477,86.428,0.63854724]
[1772801569190,0.64208743,86.477,86.43,0.63854724]
[1772801570566,8.55821418,86.48,86.431,11.56992282]
[1772801570567,0.64208743,86.473,86.431,11.56992282]
[1772801570784,0.64208743,86.473,86.432,0.63854724]
[1772801572679,0.64208743,86.471,86.432,0.63854724]
[1772801572986,0.64208743,86.471,86.434,0.63854724]
[1772801574183,12.20518726,86.482,86.435,0.63854724]
[1772801574384,11.56235891,86.488,86.44,0.14216157]
[1772801574575,0.2,86.49,86.441,0.704344]
[1772801574781,0.2,86.49,86.444,0.704344]
[1772801575092,11.56216397,86.489,86.444,0.704344]
[1772801577174,11.56216397,86.489,86.447,0.704344]
[1772801579287,11.56216397,86.489,86.449,0.704344]
[1772801579492,0.69093252,86.488,86.449,0.704344]
[1772801580789,0.69093252,86.488,86.441,0.704344]
[1772801581175,0.14216157,86.478,86.387,0.704344]
[1772801581381,0.69093252,86.449,86.388,0.704344]
[1772801581782,0.69093252,86.449,86.391,0.69476792]
[1772801581989,0.71355614,86.457,86.394,0.69476792]
[1772801582192,0.71355614,86.457,86.4,0.69476792]
[1772801582881,0.71355614,86.457,86.401,0.14216157]
[1772801583087,0.71355614,86.457,86.404,0.69476792]
[1772801583288,0.71355614,86.455,86.409,0.69476792]
[1772801583597,0.71355614,86.455,86.411,0.69476792]
[1772801585389,11.56684479,86.454,86.413,0.97909106]
[1772801585591,0.71355614,86.455,86.414,0.69476792]
[1772801586387,0.71355614,86.454,86.414,0.69476792]
[1772801586587,11.56683242,86.455,86.414,0.69476792]
[1772801586787,0.71355614,86.46,86.414,0.69476792]
[1772801587900,0.71355614,86.458,86.417,0.69476792]
[1772801588484,0.71355614,86.458,86.415,11.57206503]
[1772801588706,0.71355614,86.449,86.402,0.69476792]
[1772801589092,0.71355614,86.449,86.394,0.69476792]
[1772801589093,0.71355614,86.439,86.394,0.69476792]
[1772801589286,0.71355614,86.429,86.386,0.69476792]
[1772801589901,0.71355614,86.427,86.387,11.5758158]
[1772801590086,0.71355614,86.427,86.388,0.69476792]
[1772801591810,0.71355614,86.427,86.366,3.69383402]
[1772801591811,0.71355614,86.419,86.369,0.69476792]
[1772801592007,0.71355614,86.417,86.37,11.57809424]
[1772801592716,0.71355614,86.417,86.371,0.69476792]
[1772801594398,0.71355614,86.409,86.361,0.69476792]
[1772801594723,0.71355614,86.409,86.362,11.57916676]
[1772801594899,0.71355614,86.399,86.362,11.57916676]
[1772801595106,0.71355614,86.399,86.363,0.69476792]
[1772801595403,0.85571771,86.415,86.363,0.69476792]
[1772801596108,0.71355614,86.415,86.364,0.69476792]